Cogmind - Beta 16 @@@ ROGUE MODE // 2025.10.28 @ 00:14:26 Player: daxter767676 Result: Destroyed by S-10 Pest with Light Assault Rifle Performance ------------- Evolutions (0) 0 Regions Visited (3) 600 Robots Destroyed (2) 10 Value Destroyed (106) 106 Prototype IDs (0) 0 Alien Tech Used (0) 0 Bonus (0) 0 TOTAL SCORE: 716 Bonus ------- None Cogmind --------- Core Integrity 0/250 Matter 300/300 Energy 250/250 System Corruption 0% Temperature Cool (0) Movement Rolling (115) Ox1 Location -10/Subcaves Parts ------- > --- POWER (1) -------- Ion Engine > --- PROPULSION (2) --- Compact Wheel > --- UTILITY (2) ------ Large Storage Unit Makeshift Light Armor Plating > --- WEAPON (2) ------- (None) > --- INVENTORY (15) --- Light Ion Engine Subdweller Power Source Makeshift Power Source Armored Wheel Armored Wheel Small Storage Unit Subdweller Machine Gun Mining Laser Flamer Enhanced Flamer Heavy Explosive Trap Heavy Explosive Trap Heavy Explosive Trap Heavy Explosive Trap Peak State ------------ > --- POWER ------------ Ion Engine > --- PROPULSION ------- Armored Wheel Subdweller Monowheel > --- UTILITY ---------- Large Storage Unit Makeshift Light Armor Plating > --- WEAPON ----------- Medium Laser Mining Laser > --- INVENTORY -------- Subdweller Power Source Makeshift Power Source Compact Wheel Armored Wheel Armored Wheel Small Storage Unit Subdweller Machine Gun Mining Laser Flamer Enhanced Flamer Heavy Explosive Trap Heavy Explosive Trap Heavy Explosive Trap Heavy Explosive Trap [Rating: 14] Favorites ----------- Power Ion Engine Engine Ion Engine Propulsion Armored Wheel Leg Aluminum Leg Wheel Armored Wheel Utility Large Storage Unit Device Shield Generator Storage Large Storage Unit Protection Makeshift Light Armor Plating Weapon Medium Laser Energy Gun Medium Laser Ballistic Gun Light Assault Rifle Special Weapon Mining Laser Build | -11 -10 -10 -10 ------- Run | Yrd Mat Min Sub Slots Evolved . | . . . . Power . | . . . . Propulsion . | . . . . Utility . | . . . . Weapon . | . . . . Parts Attached 11 | . 3 5 3 Power 1 | . . 1 . Engine 1 | . . 1 . Core . | . . . . Reactor . | . . . . Propulsion 5 | . 2 1 2 Treads . | . . . . Leg . | . . . . Wheel 5 | . 2 1 2 Hover . | . . . . Flight . | . . . . Utility 3 | . 1 1 1 Device 1 | . 1 . . Storage 1 | . . 1 . Processor . | . . . . Hackware . | . . . . Protection 1 | . . . 1 Artifact . | . . . . Weapon 2 | . . 2 . Energy Gun 1 | . . 1 . Energy Cannon . | . . . . Ballistic Gun . | . . . . Ballistic Cannon . | . . . . Launcher . | . . . . Special Weapon 1 | . . 1 . Impact Weapon . | . . . . Slashing Weapon . | . . . . Piercing Weapon . | . . . . Special Melee Weapon . | . . . . Unidentified Prototypes . | . . . . Parts Lost 10 | . . 5 5 Power 1 | . . 1 . Propulsion 4 | . . 1 3 Utility 1 | . . 1 . Weapon 4 | . . 2 2 Highest Loss Streak 5 | . . 5 5 To Critical Strikes . | . . . . Average Backups 8 | . 7 6 9 Power 1 | . 1 . 1 Propulsion 3 | . 5 3 3 Utility . | . . . . Weapon 2 | . 1 2 3 Tool/Special . | . . . . Unused Backups 21 | . 10 3 8 Power 4 | . 1 1 2 Propulsion 8 | . 6 . 2 Utility 1 | . 1 . . Weapon 8 | . 2 2 4 Tool/Special . | . . . . Average Slot Usage (%) 95 | . 95 70 99 Engine 13 | . 14 7 14 Wheel 26 | . 25 20 28 Device 1 | . 11 2 . Storage 17 | . 14 17 18 Protection 7 | . . . 9 Energy Gun 11 | . . 10 13 Ballistic Gun 3 | . 28 6 . Special Weapon 11 | . . 3 13 Peak Build Rating 14 | . 11 11 14 Average Rating 10 | . 10 7 11 On Entrance 8 | 6 6 11 9 Avg Prop Armor Cover (%) . | . . . . Naked Turns . | . . . . Heaviest Build 33 | 13 15 33 33 Greatest Support 36 | 20 24 24 36 Greatest Overweight (x) 2 | . 1 1 2 Average Overweight (x) . | . . . . Largest Inventory Capacity 15 | . 8 15 15 Average Capacity 13 | . 8 10 15 Most Carried 15 | . 8 8 15 Average Carried 11 | . 7 7 13 Final Capacity 15 | 8 8 15 15 Final Carried 14 | 6 8 8 14 Class Distribution -------------------- 100% | Mutant Dominant Class ---------------- Mutant | -10/Materials Mutant | -10/Mines Mutant | -10/Subcaves Resources | -11 -10 -10 -10 ----------- Run | Yrd Mat Min Sub Matter Collected 311 | 200 . 46 65 Remotely . | . . . . Salvage Created 53 | . . 53 . Parts 6 | . . 6 . Haulers Intercepted . | . . . . Recyclers Shooed . | . . . . Parts Field Recycled . | . . . . Retrieved Matter . | . . . . Parts Self-Destructed 6 | . . . 6 Prevented . | . . . . Parts Restored . | . . . . Kills | -11 -10 -10 -10 ------- Run | Yrd Mat Min Sub Combat Hostiles Destroyed 2 | . . 2 . Guns 2 | . . 2 . Classes Destroyed 1 | . . 1 . Demolisher 2 | . . 2 . Best Kill Streak 2 | . . 2 . Combat Bots Only 2 | . . 2 . Max Kills in Single Turn 1 | . . 1 . Gunslinging . | . . . . Exploded . | . . . . Melee . | . . . . Uniques/NPCs Destroyed . | . . . . Combat | -11 -10 -10 -10 -------- Run | Yrd Mat Min Sub Hostile Shots Fired 110 | . 1 17 92 Missed 43 | . 1 2 40 Hits 67 | . . 15 52 Projectile 67 | . . 15 52 AOE 18 | . . 18 . Critical Strikes 1 | . . . 1 Damage Taken 1122 | . . 645 477 Core 256 | . . 169 87 Absorbed by Shields 63 | . . 63 . Core Remaining (%) 100 | 100 . . . Volleys Fired 31 | . 3 21 7 Largest 2 | . 2 2 1 Hottest 100 | . 40 50 100 Shots Fired 38 | . 6 25 7 Gun 31 | . 6 25 . Cannon . | . . . . Launcher . | . . . . Special 7 | . . . 7 Kinetic 17 | . 6 11 . Thermal 21 | . . 14 7 Explosive . | . . . . Electromagnetic . | . . . . Robot Hit Streak 2 | . 1 2 . Robot Miss Streak 4 | . 4 2 . Penetration Max . | . . . . Secondary Targets . | . . . . Shots Hit Robots 13 | . 1 12 . Core Hits 8 | . . 8 . Critical Kills 1 | . . 1 . Critical Parts Destroyed . | . . . . Critical Strikes 2 | . . 2 . Burn 1 | . . 1 . Destroy 1 | . . 1 . Melee Attacks . | . . . . Impact . | . . . . Slashing . | . . . . Piercing . | . . . . Sneak Attacks . | . . . . Combat Hostiles . | . . . . Follow-up Attacks . | . . . . Damage Inflicted 175 | . 12 163 . Guns 175 | . 12 163 . Cannons . | . . . . Explosions . | . . . . Melee . | . . . . Ramming . | . . . . Kinetic 75 | . 12 63 . Thermal 100 | . . 100 . Explosive . | . . . . Electromagnetic . | . . . . Impact . | . . . . Slashing . | . . . . Piercing . | . . . . Highest Corruption . | . . . . Average Corruption . | . . . . Corruption Purged . | . . . . Corruption Blocked . | . . . . Overload Shots . | . . . . Overflow Damage . | . . . . Projectiles . | . . . . Explosions . | . . . . Melee . | . . . . Knockbacks . | . . . . Impact . | . . . . Kinetic . | . . . . Secondary . | . . . . Self-Inflicted Damage . | . . . . Shots . | . . . . Rammed . | . . . . Targets Rammed . | . . . . Kicked . | . . . . Crushed . | . . . . Highest Temperature 15 | . . 15 . Average Temperature 13 | . . 13 . Received Heat Transfer 180 | . . . 180 Siege Activations . | . . . . Martial Activations . | . . . . Shielding Activations . | . . . . Robots Disrupted . | . . . . Combat Hostiles . | . . . . Robots Corrupted . | . . . . Combat Hostiles . | . . . . Parts Fried . | . . . . Impact Corruptions . | . . . . Robots Melted . | . . . . Combat Hostiles . | . . . . Parts Melted . | . . . . Heat Transferred 370 | . . 370 . Parts Sabotaged . | . . . . Parts Stolen . | . . . . Parts Stripped . | . . . . Power Chain Reactions . | . . . . Alert | -11 -10 -10 -10 ------- Run | Yrd Mat Min Sub Maximum Alert Level . | . . . . Low Security (%) 100 | . 100 100 . Level 1 . | . . . . Level 2 . | . . . . Level 3 . | . . . . Level 4 . | . . . . Level 5 . | . . . . High Security . | . . . . Max Security . | . . . . Peak Influence 30 | . . 30 . Initial . | . . . . Average 2 | . . 4 . Influence Increases 80 | . . 50 30 Destroy 0b10 Robot/C 40 | . . 40 . Destroy Leader 10 | . . 10 . Lose Combat Pursuer 30 | . . . 30 Influence Decreases 80 | . . 50 30 Time Decay 36 | . . 30 6 Lost Part 44 | . . 20 24 Squads Dispatched . | . . . . Investigation . | . . . . Extermination . | . . . . Reinforcement . | . . . . Assault . | . . . . Garrison . | . . . . Intercept . | . . . . Searches Triggered . | . . . . Construction Impeded . | . . . . Haulers Reinforced . | . . . . Active Scanning Responses . | . . . . Cargo Convoy Interrupts . | . . . . Stealth | -11 -10 -10 -10 --------- Run | Yrd Mat Min Sub Distress Signals . | . . . . Communications Jammed . | . . . . Distress Signals . | . . . . Times Spotted 17 | . 3 2 12 Peak Tracking Total 6 | . 3 2 6 Tactical Retreats 4 | . . . 4 Traps | -11 -10 -10 -10 ------- Run | Yrd Mat Min Sub Traps Triggered . | . . . . Indirectly . | . . . . Trap Hack Attempts . | . . . . Triggered . | . . . . Disarmed . | . . . . Reprogrammed . | . . . . Reused . | . . . . Traps Extracted . | . . . . Installed . | . . . . Triggered . | . . . . Most Traps Carried 4 | . . 4 4 Machines | -11 -10 -10 -10 ---------- Run | Yrd Mat Min Sub Machines Disabled . | . . . . Max in Single Turn . | . . . . Machines Repaired . | . . . . Machines Dismantled . | . . . . Machines Sabotaged . | . . . . Overloaded Fab Kills . | . . . . Hacking | -11 -10 -10 -10 --------- Run | Yrd Mat Min Sub Machines Accessed 2 | . 2 . . Terminals 1 | . 1 . . Fabricators . | . . . . Repair Stations . | . . . . Recycling Units 1 | . 1 . . Scanalyzers . | . . . . Garrison Access . | . . . . Total Hacks 5 | . 5 . . Successful . | . . . . Failed 5 | . 5 . . Catastrophic . | . . . . Database Lockouts . | . . . . Manual 5 | . 5 . . Terminals 2 | . 2 . . Fabricators . | . . . . Repair Stations . | . . . . Recycling Units 3 | . 3 . . Scanalyzers . | . . . . Garrison Access . | . . . . Terminal Hacks . | . . . . Fabricator Hacks . | . . . . Repair Station Hacks . | . . . . Recycling Unit Hacks . | . . . . Scanalyzer . | . . . . Garrison Access Hacks . | . . . . Unauthorized Hacks . | . . . . Terminals . | . . . . Fabricators . | . . . . Repair Stations . | . . . . Recycling Units . | . . . . Scanalyzers . | . . . . Garrison Access . | . . . . Data Cores Recovered . | . . . . Used . | . . . . Hacking Detections 2 | . 2 . . Full Trace Events . | . . . . Feedback Events . | . . . . Feedback Blocked . | . . . . Robot Schematics Acquired . | . . . . Robots Built . | . . . . Authchips . | . . . . Time . | . . . . Total Robot Build Rating . | . . . . Part Schematics Acquired . | . . . . Parts Built . | . . . . Authchips . | . . . . Time . | . . . . Total Part Build Rating . | . . . . Part Studies Acquired . | . . . . Parts Repaired . | . . . . Time . | . . . . Parts Recycled . | . . . . Recycled Matter . | . . . . Retrieved Matter . | . . . . Retrieved Components . | . . . . Parts Scanalyzed . | . . . . Part Schematics Acquired . | . . . . Parts Damaged . | . . . . Bothacking | -11 -10 -10 -10 ------------ Run | Yrd Mat Min Sub Used RIF Installer . | . . . . Robots Hacked . | . . . . Non-combat . | . . . . Combat . | . . . . Robot Hacks Applied . | . . . . Relay Couplers Released . | . . . . Fabnet Peak Effective % . | . . . . Robots Rewired . | . . . . Allies Hacked . | . . . . Hacks Repelled . | . . . . Allies | -11 -10 -10 -10 -------- Run | Yrd Mat Min Sub Total Allies 3 | . . 3 . Largest Group 3 | . . 3 . Highest-Rated Group 40 | . . 40 . Highest-Rated Ally 16 | . . 16 . Total Orders . | . . . . Ally Attacks 4 | . . 4 . Total Damage 17 | . . 17 . Kills . | . . . . Allies Corrupted . | . . . . Allies Melted . | . . . . Intel | -11 -10 -10 -10 ------- Run | Yrd Mat Min Sub Active Infowar (turns) . | . . . . Robot Analysis Total . | . . . . Derelict Logs Recovered . | . . . . Drone Launches . | . . . . Drone Recoveries . | . . . . Exploration | -11 -10 -10 -10 ------------- Run | Yrd Mat Min Sub Turns Passed 1330 | . 129 186 1015 Spaces Moved 1212 | 1 120 126 965 Core . | . . . . Treads . | . . . . Legs 6 | 1 5 . . Wheels 1206 | . 115 126 965 Hover . | . . . . Flight . | . . . . Fastest Speed 90 | 120 90 90 100 Average Speed 98 | 120 91 92 100 Slowest Speed 120 | 120 120 100 120 Overloaded Moves . | . . . . Propulsion Burnouts . | . . . . Robots Hopped . | . . . . Potential Cave-ins . | . . . . Cave-ins Triggered . | . . . . Exploration Rate (%) 25 | 1 25 25 52 Regions Visited 3 Branch Regions 2 Pre-discovered Areas 1 | . . . 1 Known Exits Taken . | . . . . Unknown Exits Taken 3 | 1 1 1 . Scrap Searched 4 | . . 1 3 Spaces Dug . | . . . . Terrain Destroyed . | . . . . Melee . | . . . . Projectile . | . . . . AOE . | . . . . Terrain Rammed . | . . . . Walls Destroyed . | . . . . Machines Disabled . | . . . . Actions | -11 -10 -10 -10 --------- Run | Yrd Mat Min Sub Total 1302 | . 139 171 992 Wait 24 | . . 15 9 Move 1209 | . 119 125 965 Hop . | . . . . Pick Up 19 | . 6 5 8 Fast Attach 3 | . 3 . . Attach 7 | . . 5 2 Detach 2 | . 2 . . Swap 1 | . . . 1 Drop 6 | . 6 . . Fire 31 | . 3 21 7 Melee . | . . . . Ram . | . . . . Kick . | . . . . Crush . | . . . . Escape Stasis . | . . . . Rewire . | . . . . Trap . | . . . . Miscellaneous . | . . . . Route ------- -11/Scrapyard -10/Materials -10/Mines (discovered 2 exits: [*Mat] / [*Sub]) -10/Subcaves (discovered 2 exits: [*Mat] / [*Rec]) History --------- Turn | Location | Event 1 | -11/Scrapyard | Discovered new exit (range 0) 1 | -11/Scrapyard | Entered Materials 119 | -10/Materials | Discovered new exit (range 6) 130 | -10/Materials | Entered Mines 131 | -10/Mines | Assembled infested the area 136 | -10/Mines | Assisted by bots powering up and referring to "LRC-V3" 182 | -10/Mines | Core integrity fell below 50% 191 | -10/Mines | Lost 3 allies 210 | -10/Mines | Lost 5 parts (1p1n1u2w) 214 | -10/Mines | Discovered new exit (range 7) 259 | -10/Mines | Found a hidden stash of uninstalled traps 303 | -10/Mines | Build established: Mutant 307 | -10/Mines | Discovered new exit (range 10) 316 | -10/Mines | Entered Subcaves 335 | -10/Subcaves | Discovered new exit (range 8) 340 | -10/Subcaves | Shifting Twisted Machinery released Flamer 341 | -10/Subcaves | Shifting Twisted Machinery released Sub. Machine Gun 495 | -10/Subcaves | Shifting Twisted Machinery released Sub. Power Source 497 | -10/Subcaves | Shifting Twisted Machinery released Sub. Monowheel 596 | -10/Subcaves | Learned location of Zion (-6) 596 | -10/Subcaves | Met a Zionite searching for "candidates" 979 | -10/Subcaves | A swath of the cavern ceiling suddenly collapsed 1316 | -10/Subcaves | Discovered new exit (range 16) 1323 | -10/Subcaves | Core integrity fell below 20% 1331 | -10/Subcaves | Destroyed by S-10 Pest with Light Assault Rifle Last Messages --------------- 00935_ Found 38 Matter. 00937_ Acquired Enh. Flamer. A swath of the cavern ceiling suddenly collapses. 01314_ Wheel destroyed. 01316_ EXIT=FOUND 01317_ S-10 Pest destroyed. 01321_ S-10 Pest suffers critical hit (Destroy). 01321_ S-10 Pest destroyed. 01322_ Acquired Lgt. Ion Engine. 01322_ Arm. Wheel destroyed. 01323_ Acquired 5 matter. 01323_ Mining Laser destroyed. 01324_ Lgt. Ion Engine fries itself beyond repair. 01325_ Acquired 10 matter. 01325_ Med. Laser destroyed. 01326_ Lgt. Assault Rifle fries itself beyond repair. 01330_ Sub. Monowheel destroyed. Map ----- +----------------------------------------------------+ | ??????????????????????????????????????????# # | | ??????????????????????????????????????????#### # | | ?????????????????????????????????????????????# # | | ?????????????????????????????????????????????# # | | ?????????????????????????????????????????????## | | ??????????????????????????????????????????????## | | ???????????????????????????????????????????????### | | ?????????????????????????????????????????????????# | | ??????????????????????????????#####??????????????? | | ????????????????????????????## #???????????### | | ???????????????????????????## ##?????????## # | | ??????????????????????? ### ????????## | | ??????????????????????? ???????## | | ???????????????????????? ????????# | | ????????????????????????# ????????# | | ?????????????????????????# #????????# | | ??????????????????????????# #????????# | | ??????????????????????????# ?????????# | | ???????????????????????????# #????????## | | ????????????????????????????# ##???????# | | ?????????????????????######### ##??????### # | | ?????????????????????#""" "## ##???????# # | | ?????????????????????#" #?# #####??## | | ?????????????????????#" ### #??# | | ????????????????????##""t %% ##?# | | ????????????????????#< @ ## #?# | | ????????????????????##""t ss #### ### | | ?????????????????????#" ######??# ## ## | | ?????????????????????#" #???????# ## #?#### | | ?????????????????????#""" "#?####### ##?#?????? | | ?????????????################?# #????##### | | ??????####???# "" ""#######??## ##??## ## | | ####### ##????"" "" ##### #### | | #???????# "" " " ## | | ##???????## " " | | ## #?????####" " ### # ### | | ####### #??#### ## <"""#?#####?######## | | # # ## #?## " """"###??????????????## | | ### """""""##?????????????????### ## | | ##"""####????????????????????###### | | # ## ##""##????????????????????????????? | | ############## #####?????????????????????????????? | | ?????????????###?????????????????????????????????? | | ?????????????????????????????????????????????????? | | ?????????????????????????????????????????????????? | | ?????????????????????????????????????????????????? | | ?????????????????????????????????????????????????? | | ?????????????????????????????????????????????????? | | ?????????????????????????????????????????????????? | | ?????????????????????????????????????????????????? | +----------------------------------------------------+ Best States ------------- Heat Dissipation 25 Energy Generation 10 Energy Capacity 250 Matter Stores 300 Matter Capacity 300 Sight Range 16 Terrain Scan Density 10 Armor Coverage 100 Evasion (%) 42 Item Schematics ----------------- None Robot Schematics ------------------ None Fabricated ------------ Nothing Repaired ---------- Nothing Studied --------- None Alien Tech Used ----------------- None Achievements -------------- DATA ERROR: Steam Global Achievement% Organ Harvest There's More Where That Came From Challenges ------------ None Game ------ Seed HackingTachyonDirector Manual? 0 Play Time 00:13:42 Cumulative 146.3 hours Start 2025.10.27 @ 23:59:24 End 2025.10.28 @ 00:14:26 Sessions 1 Manual Loads 0 Difficulty Rogue Special Mode None Game No. 147 Rogue 145 Adventurer 2 Explorer 0 Win Type - Total 0 Types 0/0/0/0/0/0/0/0/0/0 Lore% 63 Gallery% 56 Achievement% 24 Wizard Run 0 Options --------- Layout 2 ASCII 0 Keyboard 1 Movement Vi Keybinds 0 Fullscreen 1 Font 48/Smallcaps Map View 50x44 Zoom Use 0% Tactical HUD 1 Map Filters NONE Filters NONE Steam 1 RUN: a4e0f45c-101a-4f17-99cd-c38c64f2ac5f